bitfinex-derivatives/quotes_ETHF0:USTF0_20250626
["timestamp","ask_amount","ask_price","bid_price","bid_amount"]
[1750898679013,0.5769,2425.2,2425.1,3.2078]
[1750898679208,0.5769,2425.2,2425.1,9.6858]
[1750898680907,0.5769,2425.2,2425.1,6.478]
[1750898681109,1.25649,2425.3,2425.1,7.05491]
[1750898681317,0.6796,2425.3,2425.1,6.478]
[1750898681511,0.6796,2425.3,2425.2,3.26553218]
[1750898683011,1.25648,2425.3,2425.2,2.68863218]
[1750898684008,1.25648,2425.3,2425.1,7.05492]
[1750898684009,0.5769,2425.2,2425.1,6.478]
[1750898684209,2.0462,2425.2,2425.1,6.478]
[1750898684913,0.57693,2425.1,2425.0,2.68863218]
[1750898685213,0.57695,2425.0,2424.9,6.478]
[1750898685415,1.25745,2425.0,2424.9,6.478]
[1750898686011,2.0635,2425.0,2424.9,6.478]
[1750898686212,2.0635,2425.0,2424.9,7.05498]
[1750898687320,0.6805,2425.0,2424.9,7.05498]
[1750898688014,3.2078,2425.1,2424.9,7.05498]
[1750898688015,3.2078,2425.1,2424.9,7.05496]
[1750898688223,3.78474,2425.1,2424.9,7.05496]
[1750898688422,3.2078,2425.1,2425.0,0.57695]
[1750898688920,0.6685,2425.2,2425.0,0.57695]
[1750898689123,2.076,2425.2,2425.1,0.57693]
[1750898689417,3.69539636,2425.2,2425.0,3.26557218]
[1750898689613,2.6529,2425.2,2425.0,3.26557218]
[1750898690013,2.076,2425.2,2425.1,0.57693]
[1750898690219,3.11849669,2425.2,2425.1,0.57693]
[1750898690423,2.076,2425.2,2425.1,0.57693]
[1750898691021,3.11845453,2425.2,2425.1,0.57693]
[1750898692313,3.69535453,2425.2,2425.0,0.57694]
[1750898692509,1.4455,2425.1,2425.0,0.57694]
[1750898692714,0.6685,2425.2,2425.1,0.57693]
[1750898693012,1.71111461,2425.2,2425.1,0.57693]
[1750898693519,2.28801461,2425.2,2425.0,0.57694]
[1750898693723,2.0246,2425.2,2425.1,0.57693]
[1750898693916,3.6440683,2425.2,2425.0,0.57694]
[1750898694115,2.6015,2425.2,2425.0,0.57694]
[1750898694423,2.0246,2425.2,2425.1,0.57693]
[1750898694622,3.06713117,2425.2,2425.1,0.57693]
[1750898695723,1.71103117,2425.2,2425.1,3.26556218]
[1750898697328,1.04253117,2425.2,2425.1,3.26556218]
[1750898697523,4.6693,2425.4,2425.3,0.57688]
[1750898697725,5.71169496,2425.4,2425.3,3.26551218]
[1750898699526,3.885,2425.7,2425.6,0.57681]
[1750898699829,4.92724249,2425.7,2425.6,0.57681]
[1750898700416,4.92724249,2425.7,2425.5,2.68863218]
[1750898700622,0.57683,2425.5,2425.4,0.6936]
[1750898700926,1.61909249,2425.5,2425.3,3.26551218]
[1750898701231,3.76929615,2425.4,2425.2,7.05589]
[1750898701428,2.1501,2425.4,2425.2,7.05589]
[1750898701622,2.1501,2425.4,2425.3,0.57688]
[1750898701821,3.19233453,2425.4,2425.3,0.57688]
[1750898702024,3.19233453,2425.4,2425.2,7.05589]
[1750898702321,0.57688,2425.3,2425.2,6.479]
[1750898702528,0.57688,2425.3,2424.9,3.95919218]
[1750898702529,4.6807,2425.3,2424.9,3.95919218]
[1750898702728,0.57694,2425.1,2425.0,6.479]
[1750898703427,1.25114,2425.1,2425.0,6.479]
[1750898705828,0.6742,2425.1,2424.9,9.15863218]
[1750898706029,0.6742,2425.1,2425.0,0.57695]
[1750898706735,3.2078,2425.3,2425.2,0.5769]
[1750898706935,3.2078,2425.3,2425.2,3.26553218]
[1750898707238,1.27677,2425.4,2425.2,3.26552218]
[1750898707421,0.6999,2425.4,2425.3,0.57688]
[1750898707627,1.74250427,2425.4,2425.3,0.57688]
[1750898709437,1.04260427,2425.4,2425.3,0.57688]
[1750898709636,1.04260427,2425.4,2425.3,7.71208]
[1750898709936,0.7346,2425.6,2425.3,10.343]
[1750898710230,1.04266864,2425.5,2425.4,3.26549218]
[1750898712830,1.04266864,2425.5,2425.4,4.68279218]
[1750898716940,3.42748,2425.8,2425.5,0.57681]
[1750898717143,1.04220692,2425.7,2425.5,0.57681]
[1750898717339,3.2078,2426.0,2425.8,0.57674]
[1750898717644,2.46820439,2426.2,2425.8,0.57674]
[1750898717645,1.0420529,2425.9,2425.8,0.57676]
[1750898718855,1.0420529,2425.9,2425.8,3.26539218]
[1750898720154,2.0564,2426.1,2425.9,0.57673]
[1750898720354,1.04094442,2426.0,2425.9,0.57673]
[1750898721054,0.6743,2426.1,2426.0,0.57672]
[1750898721352,1.7144418,2426.1,2426.0,3.26535218]
[1750898722956,2.2911318,2426.1,2426.0,2.68863218]
[1750898723455,0.57673,2426.0,2425.8,3.94148218]
[1750898725259,0.57673,2426.0,2425.9,0.57674]
[1750898725452,1.251,2426.1,2425.9,0.57674]
[1750898725653,0.57674,2426.0,2425.8,0.57675]
[1750898725853,1.91164,2426.0,2425.8,0.57675]
[1750898726152,3.8821,2426.1,2426.0,0.57672]
[1750898726352,4.9212762,2426.1,2426.0,0.57672]
[1750898726559,5.4979662,2426.1,2425.9,1.24083]
[1750898726757,4.45879,2426.1,2425.9,0.57673]
[1750898727558,3.8821,2426.1,2426.0,0.57672]
[1750898727760,4.92126797,2426.1,2426.0,0.57672]
[1750898728058,3.2078,2426.4,2426.2,0.57665]
[1750898728253,3.2078,2426.4,2426.3,9.73427218]
[1750898728458,6.469,2426.9,2426.3,9.15763218]
[1750898728459,3.9443,2426.7,2426.3,9.15763218]
[1750898728660,3.9443,2426.7,2426.6,0.57657]
[1750898728862,4.98300192,2426.7,2426.6,0.57657]
[1750898729250,3.9443,2426.7,2426.6,0.57657]
[1750898729755,3.9443,2426.7,2426.5,3.26521218]
[1750898730465,3.9443,2426.7,2426.6,0.57657]
[1750898731358,0.7365,2426.7,2426.6,0.57657]
[1750898731864,2.1804,2427.0,2426.8,0.57652]
[1750898732064,0.6948,2426.9,2426.8,0.57652]
[1750898732264,1.2713,2426.9,2426.7,3.26517218]
[1750898732456,1.2713,2426.9,2426.7,2.68863218]
[1750898732662,0.6948,2426.9,2426.7,3.26518218]
[1750898732864,0.6948,2426.9,2426.8,0.57653]
[1750898733267,0.6948,2426.9,2426.8,7.04453]
[1750898733866,0.6948,2426.9,2426.8,7.10122717]
[1750898734255,0.6948,2426.9,2426.8,6.52469717]
[1750898734564,0.6948,2426.9,2426.8,7.10122717]
[1750898735761,0.6948,2426.9,2426.8,0.05669717]
[1750898735966,2.1071,2426.9,2426.8,9.20732935]
[1750898737465,2.1071,2426.9,2426.8,9.78385935]
[1750898737767,2.1071,2426.9,2426.8,9.20732935]
[1750898739068,2.1071,2426.9,2426.8,9.78385935]
[1750898739969,2.6836,2426.9,2426.8,9.20732935]
[1750898740269,2.1071,2426.9,2426.8,9.20732935]
[1750898740465,2.1071,2426.9,2426.8,9.78385935]
[1750898742368,0.6948,2426.9,2426.8,9.78385935]
[1750898743367,0.6948,2426.9,2426.8,50.58385935]
[1750898744874,1.4475,2427.3,2426.8,50.00732935]
[1750898745174,1.4475,2427.3,2427.2,3.26506218]
[1750898745670,1.4475,2427.3,2427.2,2.68863218]
[1750898745866,2.02391,2427.3,2427.2,2.68863218]
[1750898746172,3.05834532,2427.3,2427.2,2.74532935]
[1750898746374,2.48193532,2427.3,2427.2,2.74532935]
[1750898747174,2.48193532,2427.3,2427.2,3.32175935]
[1750898747472,2.48193532,2427.3,2427.2,0.63312717]
[1750898748077,3.92753532,2427.3,2427.2,0.63312717]
[1750898748376,9.34090924,2427.8,2427.2,0.63312717]
[1750898748377,5.67600439,2427.9,2427.6,0.57634]
[1750898748575,3.11436639,2427.8,2427.7,0.57631]
[1750898749075,3.11436639,2427.8,2427.7,0.63300717]
[1750898749976,3.11436639,2427.8,2427.7,0.05669717]
[1750898750174,3.11436639,2427.8,2427.7,0.63300717]
[1750898750977,3.11436639,2427.8,2427.7,0.05669717]
[1750898751279,2.0759,2427.8,2427.7,0.63300717]
[1750898751678,2.7422,2427.8,2427.7,0.63300717]
[1750898752873,3.2078,2427.9,2427.8,0.57629]
[1750898753073,3.2078,2427.9,2427.8,3.32161935]
[1750898753274,3.2078,2427.9,2427.8,3.98651935]
[1750898754982,6.4729,2428.2,2428.0,0.57624]
[1750898755279,6.4729,2428.2,2428.0,3.26487218]
[1750898755280,1.27200283,2428.1,2428.0,3.26487218]
[1750898755781,1.27200283,2428.1,2428.0,2.68863218]
[1750898756174,1.27200283,2428.1,2428.0,3.26487218]
[1750898756679,3.2078,2428.5,2428.4,0.57615]
[1750898756983,1.97669,2428.7,2428.4,3.26478218]
[1750898757181,1.61250427,2428.6,2428.4,3.26478218]
[1750898757381,0.5761,2428.6,2428.4,3.26478218]
[1750898757583,0.57612,2428.5,2428.4,2.68863218]
[1750898757877,0.57617,2428.4,2428.2,2.68863218]
[1750898758085,1.28947,2428.4,2428.2,2.68863218]
[1750898758284,1.4395,2428.3,2428.2,3.26482218]
[1750898760684,0.7133,2428.4,2428.3,0.57617]
[1750898761182,3.2078,2428.5,2428.4,0.57615]
[1750898761487,3.2078,2428.5,2428.4,3.26478218]
[1750898762096,3.2078,2428.5,2428.4,3.99028218]
[1750898762385,3.2078,2428.8,2428.7,0.57606]
[1750898762687,3.2078,2428.8,2428.7,3.26469218]
[1750898763789,3.2078,2428.8,2428.7,2.68863218]
[1750898764381,1.4639,2429.0,2428.8,0.57604]
[1750898764587,1.4639,2429.0,2428.9,2.68863218]
[1750898764782,2.0399,2429.0,2428.9,2.68863218]
[1750898765991,1.4639,2429.0,2428.9,2.68863218]
[1750898766285,1.377,2429.1,2429.0,0.576]
[1750898766488,0.6872,2429.1,2428.9,3.26465218]
[1750898766690,0.7356,2429.5,2429.0,7.18]
[1750898766985,0.7356,2429.5,2429.4,2.68863218]
[1750898767187,0.7356,2429.5,2429.0,7.8476]
[1750898767389,0.57594,2429.3,2429.1,0.57598]
[1750898767590,1.4027,2429.4,2429.2,0.57596]
[1750898767896,1.4027,2429.4,2429.3,2.68863218]
[1750898768095,0.57596,2429.3,2429.1,2.68863218]
[1750898768393,1.97862,2429.4,2429.1,3.26460218]
[1750898768589,1.4027,2429.4,2429.2,0.57595]
[1750898768793,1.4027,2429.4,2429.3,0.57593]
[1750898768993,1.4027,2429.4,2429.3,3.26456218]
[1750898769486,0.7356,2429.5,2429.4,0.57591]
[1750898769888,0.7356,2429.5,2429.4,0.665]
[1750898770487,2.73869,2429.5,2429.4,0.665]
[1750898770690,2.1628,2429.5,2429.4,0.665]
[1750898771191,2.1628,2429.5,2429.4,1.24091]
[1750898771383,2.1628,2429.5,2429.4,0.665]
[1750898771689,7.1628,2429.5,2428.9,9.6568]
[1750898771990,3.2078,2429.3,2428.9,10.23282]
[1750898772193,2.101,2429.2,2428.9,10.23282]
[1750898772390,2.00319,2429.1,2428.9,9.6568]
[1750898772594,2.70829,2429.1,2428.9,10.23283]
[1750898773194,2.1323,2429.1,2429.0,0.576]
[1750898773493,2.1323,2429.1,2429.0,3.26463218]
[1750898773685,3.2078,2429.3,2429.0,2.68863218]
[1750898774194,1.4518,2429.2,2429.0,2.68863218]
[1750898774487,0.57598,2429.1,2429.0,2.68863218]
[1750898774790,2.02777,2429.2,2429.0,2.68863218]
[1750898775293,1.4518,2429.1,2429.0,2.68863218]
[1750898775497,0.576,2429.0,2428.9,7.1473]
[1750898775692,1.3098,2429.0,2428.9,7.1473]
[1750898776491,0.7338,2429.0,2428.9,7.1473]
[1750898776792,0.7338,2429.0,2428.9,7.72333]
[1750898778398,3.78375,2429.3,2428.9,7.1473]
[1750898778589,1.25036,2429.2,2429.0,3.26463218]
[1750898778787,1.25036,2429.2,2429.0,0.576]
[1750898778995,0.57598,2429.1,2429.0,2.68863218]
[1750898779493,1.98208,2429.1,2429.0,2.68863218]
[1750898779895,0.576,2429.0,2428.9,7.1473]
[1750898781392,1.98209,2429.1,2428.9,7.72332]
[1750898781690,1.98209,2429.1,2429.0,2.68863218]
[1750898781891,0.576,2429.0,2428.9,7.1473]
[1750898782092,1.9634,2429.0,2428.9,7.1473]
[1750898782498,1.9634,2429.0,2428.3,3.9389]
[1750898782499,0.57608,2428.7,2428.3,3.9389]
[1750898782691,3.2078,2428.7,2428.2,6.449]
[1750898782892,0.57617,2428.3,2428.2,6.449]
[1750898783591,3.78397,2428.3,2428.2,6.449]
[1750898786695,3.2078,2428.3,2428.2,6.449]
[1750898786901,3.78397,2428.3,2428.2,6.449]
[1750898787698,3.78397,2428.3,2428.2,7.02519]
[1750898787699,3.2078,2428.3,2428.2,7.02519]
[1750898788396,3.2078,2428.3,2428.2,8.35599]
[1750898793113,0.57608,2428.7,2428.5,0.57611]
[1750898793314,0.57608,2428.7,2428.5,3.26474218]
[1750898793706,5.18414,2428.9,2428.6,0.5761]
[1750898793914,1.04281745,2428.8,2428.7,2.68863218]
[1750898794219,4.6081,2428.9,2428.7,3.26471218]
[1750898794415,4.6081,2428.9,2428.8,0.57605]
[1750898794615,5.65086317,2428.9,2428.8,0.57605]
[1750898794811,5.65086317,2428.9,2428.7,3.26469218]
[1750898795016,0.57605,2428.8,2428.7,2.68863218]
[1750898795217,1.98035,2428.8,2428.7,2.68863218]
[1750898795418,1.4043,2428.8,2428.7,2.68863218]
[1750898795918,1.4043,2428.8,2428.7,3.26471218]
[1750898796117,1.98035,2428.8,2428.7,2.68863218]
[1750898796320,1.4043,2428.8,2428.7,2.68863218]
[1750898796511,1.4043,2428.8,2428.7,3.26471218]
[1750898797715,3.2078,2428.9,2428.8,0.57605]
[1750898799824,3.2078,2428.9,2428.8,0.63266757]
[1750898800215,0.576,2429.0,2428.8,0.63266757]
[1750898800522,0.57599,2429.1,2428.9,2.68863218]
[1750898800924,0.57599,2429.1,2429.0,0.05661757]
[1750898801222,1.61935181,2429.1,2429.0,0.05661757]
[1750898801626,1.04336181,2429.1,2429.0,0.63261757]
[1750898801920,1.04336181,2429.1,2429.0,1.32551757]
[1750898802629,1.3607,2429.2,2429.0,1.32551757]
[1750898803127,1.3607,2429.2,2429.0,0.6929]
[1750898803128,0.57598,2429.1,2429.0,0.6929]
[1750898804524,1.3607,2429.2,2429.0,1.2689]
[1750898804723,1.3607,2429.2,2429.1,0.57598]
[1750898804915,1.93666,2429.2,2429.0,1.26889]
[1750898805526,0.57598,2429.1,2429.0,0.6929]
[1750898805718,1.93667,2429.2,2429.0,1.2689]
[1750898806227,0.57598,2429.1,2429.0,0.6929]
[1750898806423,1.3607,2429.2,2429.0,0.6929]
[1750898806625,1.93667,2429.2,2429.0,1.2689]
[1750898806929,1.93667,2429.2,2429.0,0.6929]
[1750898806930,0.57598,2429.1,2429.0,0.6929]
[1750898807924,1.3607,2429.2,2428.5,3.2078]
[1750898808126,0.57607,2428.8,2428.6,0.5761]
[1750898808430,2.72818,2428.7,2428.6,0.5761]
[1750898808629,2.1521,2428.7,2428.6,0.5761]
[1750898809628,2.72818,2428.7,2428.6,0.5761]
[1750898809824,2.72818,2428.7,2428.3,1.3665]
[1750898809825,2.1521,2428.7,2428.3,1.3665]
[1750898810126,0.57618,2428.3,2428.2,6.454]
[1750898810323,1.44039,2428.4,2427.9,7.8805]
[1750898810519,5.2364,2428.2,2427.9,7.8805]
[1750898810719,0.57631,2427.7,2427.6,6.454]
[1750898811026,3.2078,2427.9,2427.3,12.92684218]
[1750898811225,1.3345,2427.6,2427.4,0.57637]
[1750898811615,1.91084,2427.6,2427.3,12.92683218]
[1750898811931,0.57637,2427.5,2427.3,9.6618]
[1750898812125,1.4463,2427.5,2427.3,10.2382]
[1750898812729,1.4463,2427.5,2427.4,0.57638]
[1750898813916,1.4463,2427.5,2427.4,3.26501218]
[1750898814119,0.7358,2427.8,2427.4,2.68863218]
[1750898814315,2.1821,2427.8,2427.6,3.26495218]
[1750898815330,1.4463,2427.8,2427.6,2.68863218]
[1750898815533,1.4463,2427.8,2427.7,0.57631]
[1750898818741,3.2078,2427.9,2427.8,0.57629]
[1750898818928,3.2078,2427.9,2427.8,3.26492218]
[1750898819532,0.57622,2428.1,2427.8,3.26492218]
[1750898819731,1.4324,2428.0,2427.9,0.57626]
[1750898821633,3.9019,2428.2,2428.1,0.57622]
[1750898821841,4.47811,2428.2,2427.9,0.57626]
[1750898822035,4.47811,2428.2,2428.0,2.68863218]
[1750898822236,4.47811,2428.2,2428.0,3.26487218]
[1750898822432,1.4298,2428.1,2428.0,3.26487218]
[1750898822830,3.9019,2428.2,2428.1,0.57622]
[1750898823037,0.709,2428.4,2428.3,0.57617]
[1750898823340,0.709,2428.4,2428.2,2.68863218]
[1750898823540,2.00597,2428.3,2428.2,2.68863218]
[1750898823737,2.00597,2428.3,2428.1,0.57621]
[1750898824042,1.4298,2428.3,2428.1,0.57621]
[1750898824434,1.4298,2428.3,2428.2,0.57619]
[1750898824831,1.4298,2428.3,2428.0,5.89643218]
[1750898825035,2.00598,2428.3,2428.1,0.5762]
[1750898825234,1.4298,2428.3,2428.2,0.57619]
[1750898826042,1.4298,2428.3,2428.2,3.26482218]
[1750898826632,0.709,2428.4,2428.2,3.26482218]
[1750898826838,5.22541,2428.6,2428.3,0.57617]
[1750898827038,0.57615,2428.4,2428.2,3.26481218]
[1750898827339,0.57615,2428.4,2428.2,2.68863218]
[1750898827532,0.57616,2428.4,2428.2,2.68863218]
[1750898827732,0.57617,2428.3,2428.2,2.68863218]
[1750898828246,0.57616,2428.4,2428.2,3.26482218]
[1750898828537,0.57617,2428.3,2428.2,2.68863218]
[1750898828939,4.6493,2428.6,2428.2,2.68863218]
[1750898829245,0.57613,2428.5,2428.2,3.26481218]
[1750898829446,0.57615,2428.4,2428.2,3.26481218]
[1750898830038,0.57615,2428.4,2428.2,2.68863218]
[1750898830238,0.57617,2428.3,2428.2,2.68863218]
[1750898831349,0.57616,2428.4,2428.2,3.26482218]
[1750898831956,0.57616,2428.4,2428.2,2.68863218]
[1750898832245,0.57616,2428.4,2428.2,3.26482218]
[1750898833442,0.57616,2428.4,2428.2,2.68863218]
[1750898834151,0.6927,2428.5,2428.2,2.68863218]
[1750898834152,0.57617,2428.3,2428.2,2.68863218]
[1750898835352,0.57619,2428.2,2428.1,3.26484218]
[1750898835549,0.57619,2428.2,2428.1,2.68863218]
[1750898835751,0.57618,2428.3,2428.1,3.26484218]
[1750898837454,1.26884,2428.5,2428.3,0.57617]
[1750898837645,1.04371365,2428.4,2428.3,3.26480218]
[1750898837842,1.04371365,2428.4,2428.3,2.68863218]
[1750898838044,1.04371365,2428.4,2428.3,3.39643218]
[1750898838547,3.2078,2428.6,2428.5,0.57612]
[1750898838758,3.2078,2428.6,2428.5,3.26475218]
[1750898839552,0.57606,2428.8,2428.6,0.5761]
[1750898839852,3.78384,2428.9,2428.8,2.68863218]
[1750898840051,4.82724919,2428.9,2428.8,2.68863218]
[1750898840754,4.25120919,2428.9,2428.8,3.26468218]
[1750898841049,3.78383,2428.9,2428.8,2.68863218]
[1750898841448,3.78383,2428.9,2428.8,9.15063218]
[1750898841952,3.78383,2428.9,2428.8,9.87773218]
[1750898842752,3.2078,2428.9,2428.8,10.45378218]
[1750898842946,3.2078,2428.9,2428.8,9.87773218]
[1750898843556,3.2078,2428.9,2428.8,10.45378218]
[1750898843949,3.2078,2428.9,2428.8,9.87773218]
[1750898844149,3.78383,2428.9,2428.8,9.87773218]
[1750898844449,3.2078,2428.9,2428.8,9.87773218]
[1750898844754,0.57602,2429.0,2428.8,9.87773218]
[1750898845353,0.57599,2429.1,2428.8,10.45378218]
[1750898845552,0.57599,2429.1,2429.0,2.68863218]
[1750898846841,0.57599,2429.1,2428.8,7.1891]
[1750898847046,0.57599,2429.1,2429.0,2.68863218]
[1750898849157,0.57597,2429.2,2429.0,3.26463218]
[1750898849345,1.3267,2429.2,2429.0,2.68863218]
[1750898849551,0.57598,2429.1,2429.0,2.68863218]
[1750898851760,1.90267,2429.2,2429.0,3.26463218]
[1750898852455,1.90266,2429.2,2429.0,3.26462218]
[1750898852660,1.3267,2429.2,2429.1,0.57598]
[1750898853249,1.3267,2429.2,2429.0,0.57599]
[1750898853451,3.2078,2429.3,2429.1,3.26460218]
[1750898853650,3.2078,2429.3,2429.2,0.57596]
[1750898853957,3.78373,2429.3,2429.1,3.26460218]
[1750898854857,3.2078,2429.3,2429.1,3.26460218]
[1750898855052,3.78373,2429.3,2429.1,3.26460218]
[1750898855350,0.7088,2429.4,2429.1,2.68863218]
[1750898855555,0.7088,2429.4,2429.2,0.7189]
[1750898855959,1.28471,2429.4,2429.2,1.29485]
[1750898856460,0.57593,2429.3,2429.2,0.7189]
[1750898857358,1.95343,2429.3,2429.2,0.7189]
[1750898857761,1.3775,2429.3,2429.2,0.7189]
[1750898858060,1.95343,2429.3,2429.2,0.7189]
[1750898864665,2.99424523,2429.3,2429.2,0.7189]
[1750898865464,2.99424523,2429.3,2429.2,0.76044768]
[1750898872263,2.99424523,2429.3,2428.6,3.26472218]
[1750898872264,0.57605,2428.8,2428.6,3.26472218]
[1750898872457,0.57605,2428.8,2428.5,3.2078]
[1750898872458,3.2078,2428.9,2428.5,3.2078]
[1750898872661,5.85244741,2428.8,2428.2,3.37623218]
[1750898872865,2.45221523,2428.7,2428.2,3.37623218]
[1750898873056,0.57617,2428.4,2428.2,3.37623218]
[1750898873255,1.04081523,2428.3,2428.2,3.95242218]
[1750898873866,0.6652,2428.8,2428.4,0.57615]
[1750898874169,1.62847297,2428.7,2428.6,2.68863218]
[1750898875569,3.03987297,2428.7,2428.6,2.68863218]
[1750898875872,0.5761,2428.6,2428.5,0.7298]
[1750898876165,1.62848297,2428.6,2428.5,0.7298]
[1750898876370,0.57612,2428.5,2428.4,2.68863218]
[1750898876572,1.62850297,2428.5,2428.3,6.448]
[1750898876773,1.05238297,2428.4,2428.3,7.02417]
[1750898877472,4.6783,2428.5,2428.4,0.57615]
[1750898877673,5.72978876,2428.5,2428.4,0.57615]
[1750898878476,3.09810876,2428.5,2428.3,7.02415]
[1750898878671,1.4705,2428.5,2428.4,3.26478218]
[1750898878877,1.0511917,2428.5,2428.4,3.26478218]
[1750898881164,3.2078,2428.8,2428.7,0.57607]
[1750898881370,3.2078,2428.8,2428.7,3.26470218]
[1750898882077,3.2078,2428.8,2428.7,2.68863218]
[1750898882680,3.2078,2428.8,2428.7,3.26470218]
[1750898883076,3.78385,2428.8,2428.7,2.68863218]
[1750898883286,3.2078,2428.8,2428.7,3.26470218]
[1750898883682,3.78385,2428.8,2428.7,2.68863218]
[1750898883878,0.57611,2428.6,2428.4,0.57613]
[1750898884080,0.57612,2428.5,2428.3,9.71279218]
[1750898884777,1.27271,2428.6,2428.4,0.57615]
[1750898885480,0.57612,2428.5,2428.3,9.71279218]
[1750898887285,0.57617,2428.4,2428.2,1.95948]
[1750898887484,0.57617,2428.3,2428.2,4.07193218]
[1750898887685,4.6766,2428.5,2428.2,4.07193218]
[1750898887686,0.57616,2428.4,2428.2,4.07193218]
[1750898887987,4.6766,2428.5,2428.4,0.57615]
[1750898888285,4.6766,2428.5,2428.2,4.07193218]
[1750898888286,5.25273,2428.5,2428.3,0.57616]
[1750898889480,0.57615,2428.4,2428.2,4.64811218]
[1750898889785,0.57615,2428.4,2428.3,0.57617]
[1750898889978,0.57615,2428.4,2428.2,4.64811218]
[1750898890378,0.57616,2428.4,2428.2,4.64812218]
[1750898890575,1.96316,2428.4,2428.2,4.64812218]
[1750898893392,1.387,2428.4,2428.3,0.57617]
[1750898893686,1.96315,2428.4,2428.2,4.64811218]
[1750898893990,1.387,2428.4,2428.3,0.57617]
[1750898894486,3.2078,2428.5,2428.4,0.57615]
[1750898894688,3.78392,2428.5,2428.4,2.68863218]
[1750898894990,4.5503,2428.5,2428.4,3.26478218]
[1750898895584,3.2078,2428.5,2428.4,3.26478218]
[1750898895886,0.6966,2428.6,2428.5,0.57612]
[1750898896188,1.74824695,2428.6,2428.5,0.57612]
[1750898897387,1.05164695,2428.6,2428.5,0.57612]
[1750898897589,5.2594,2428.8,2428.7,0.57607]
[1750898897890,6.3113805,2428.8,2428.7,3.26470218]
[1750898898190,6.3113805,2428.8,2428.7,2.68863218]
[1750898898391,6.3113805,2428.8,2428.7,3.26470218]
[1750898898992,6.8874305,2428.8,2428.7,2.68863218]
[1750898899790,0.57609,2428.7,2428.5,2.68863218]
[1750898899996,1.05060413,2428.6,2428.5,3.26475218]
[1750898903502,1.05060413,2428.6,2428.3,6.446]
[1750898903801,1.62672413,2428.5,2428.3,9.71078218]
[1750898904002,1.05060413,2428.4,2428.3,9.71078218]
[1750898904199,1.76720413,2428.4,2428.3,9.71078218]
[1750898904596,1.76720413,2428.4,2427.9,1.44066]
[1750898904597,4.97500413,2428.4,2428.0,6.446]
[1750898904803,0.57621,2428.2,2428.0,6.446]
[1750898905103,1.05060413,2428.1,2428.0,0.57624]
[1750898906402,1.98881,2428.2,2428.0,0.57624]
[1750898906604,1.98881,2428.2,2428.1,2.68863218]
[1750898906805,3.04019629,2428.2,2428.1,2.68863218]
[1750898907107,2.46398629,2428.2,2428.1,2.68863218]
[1750898907606,3.04017629,2428.2,2428.1,2.68863218]
[1750898907905,2.46398629,2428.2,2428.1,2.68863218]
[1750898908600,6.447,2428.5,2428.1,3.26485218]
[1750898908801,1.05097955,2428.4,2427.9,2.046]
[1750898908995,1.05097955,2428.3,2428.1,0.57625]
[1750898909201,3.2078,2428.4,2428.0,6.447]
[1750898909506,0.57624,2428.2,2428.0,6.447]
[1750898909700,1.352,2428.3,2428.0,6.447]
[1750898910006,0.57626,2428.1,2428.0,9.13563218]
[1750898911909,0.57626,2428.1,2428.0,6.447]
[1750898912106,0.57634,2427.8,2427.6,3.26500218]
[1750898912298,4.5598,2428.1,2427.8,0.57632]
[1750898912499,0.5763,2428.0,2427.9,2.68863218]
[1750898914012,0.57628,2428.1,2427.9,2.68863218]
[1750898914207,0.57628,2428.1,2427.9,3.26493218]
[1750898914508,7.1546,2428.3,2427.9,3.26493218]
[1750898914708,1.62741607,2428.2,2428.1,2.68863218]
[1750898918108,2.98501607,2428.2,2428.1,2.68863218]
[1750898918618,1.62741607,2428.2,2428.1,2.68863218]
[1750898919303,1.62741607,2428.2,2428.1,3.36953218]
[1750898919808,1.05117607,2428.2,2428.1,3.94579218]
[1750898920112,1.28382,2428.3,2428.1,3.94579218]
[1750898920314,1.28383,2428.3,2428.1,3.94579218]
[1750898920913,0.57624,2428.2,2428.1,3.36953218]
[1750898921313,1.28383,2428.3,2428.1,3.94579218]
[1750898921514,0.7076,2428.3,2428.2,0.57624]
[1750898921816,2.33489531,2428.3,2428.1,3.94578218]
[1750898922013,0.57624,2428.2,2428.1,3.36953218]
[1750898922418,1.28383,2428.3,2428.1,3.94579218]
[1750898922917,3.2078,2428.4,2428.3,0.57621]
[1750898923112,4.258861,2428.4,2428.3,2.68863218]
[1750898923416,4.835051,2428.4,2428.3,2.68863218]
[1750898924117,4.258861,2428.4,2428.3,3.26484218]
[1750898924613,4.258861,2428.4,2428.2,0.6849]
[1750898924819,0.57624,2428.2,2428.1,9.81553218]
[1750898925315,2.67183,2428.3,2428.1,10.39179218]
[1750898925621,2.67183,2428.3,2428.1,50.61553218]
[1750898926515,0.57624,2428.2,2428.1,9.81553218]
[1750898928615,1.6171577,2428.2,2428.1,9.81553218]
[1750898930115,1.6171577,2428.2,2428.1,7.1269]
[1750898930319,1.6171577,2428.2,2427.9,3.41343218]
[1750898930320,0.57629,2428.0,2427.9,2.68863218]
[1750898932524,2.1039,2428.1,2427.9,2.68863218]
[1750898932816,0.57625,2428.2,2428.0,0.57627]
[1750898933029,0.57625,2428.2,2428.1,2.68863218]
[1750898933214,1.61775054,2428.3,2428.1,3.39043218]
[1750898933415,1.04152054,2428.2,2428.1,3.39043218]
[1750898934123,0.57624,2428.2,2428.1,3.39043218]
[1750898934323,1.04152054,2428.2,2428.1,3.96669218]
[1750898934522,1.04152054,2428.3,2428.1,3.96669218]
[1750898934822,0.57624,2428.2,2428.1,3.39043218]
[1750898935023,1.61776054,2428.2,2428.1,3.39043218]
[1750898936217,4.82556054,2428.2,2428.1,3.39043218]
[1750898936424,4.24932054,2428.2,2428.1,3.39043218]
[1750898936622,4.82556054,2428.2,2428.1,3.39043218]
[1750898936823,4.24932054,2428.2,2428.1,3.39043218]
[1750898937024,4.24932054,2428.2,2428.1,3.96669218]
[1750898938518,3.2078,2428.2,2428.1,5.39419218]
[1750898940124,9.6538,2428.7,2428.4,0.57617]
[1750898940322,1.04193126,2428.6,2428.5,0.57615]
[1750898940520,1.61807126,2428.6,2428.5,2.68863218]